bitfinex/quotes_BTCUSD_20250522
["timestamp","ask_amount","ask_price","bid_price","bid_amount"]
[1747906456077,0.18193171,110570.0,110560.0,3.51854085]
[1747906461852,0.18193171,110570.0,110560.0,3.51654085]
[1747906462307,0.18193171,110570.0,110560.0,3.51754085]
[1747906463308,0.18193171,110570.0,110560.0,3.51554085]
[1747906463669,0.18193171,110570.0,110560.0,3.51654085]
[1747906466149,0.19097559,110570.0,110560.0,3.51654085]
[1747906468713,0.19097559,110570.0,110560.0,3.31761884]
[1747906470763,0.19097559,110570.0,110560.0,3.33215969]
[1747906471332,0.19097559,110570.0,110560.0,3.33225902]
[1747906473040,0.20906326,110570.0,110560.0,3.33225902]
[1747906474276,0.20906326,110570.0,110560.0,3.35938902]
[1747906477217,0.1909751,110570.0,110560.0,3.35938902]
[1747906477429,0.20906261,110570.0,110560.0,3.35938902]
[1747906477641,0.20001865,110570.0,110560.0,3.35938902]
[1747906477872,0.20906236,110570.0,110560.0,3.35938902]
[1747906478301,0.21810624,110570.0,110560.0,3.35938902]
[1747906478710,0.22715028,110570.0,110560.0,3.35938902]
[1747906478950,0.21810689,110570.0,110560.0,3.35938902]
[1747906479162,0.20906285,110570.0,110560.0,3.35938902]
[1747906479363,0.20906276,110570.0,110560.0,3.35938902]
[1747906479538,0.21810672,110570.0,110560.0,3.35938902]
[1747906483145,0.20001946,110570.0,110560.0,3.35938902]
[1747906484012,0.20001946,110570.0,110560.0,3.75254902]
[1747906487146,0.20001946,110570.0,110560.0,3.35938902]
[1747906489398,0.20001946,110570.0,110560.0,3.3482656]
[1747906490599,0.20906235,110570.0,110560.0,3.93136763]
[1747906490976,0.20906235,110570.0,110560.0,3.7414256]
[1747906491186,0.21810639,110570.0,110560.0,3.7414256]
[1747906491607,0.21810631,110570.0,110560.0,3.7414256]
[1747906493869,0.20906301,110570.0,110560.0,3.7414256]
[1747906494058,0.20001946,110570.0,110560.0,3.7414256]
[1747906497583,0.2090635,110570.0,110560.0,3.7414256]
[1747906498109,0.20906277,110570.0,110560.0,3.92232285]
[1747906498410,0.21810607,110570.0,110560.0,3.94041249]
[1747906498553,0.21810607,110570.0,110560.0,3.93136771]
[1747906499002,0.21810607,110570.0,110560.0,3.7414256]
[1747906499803,0.00105083,110570.0,110560.0,4.01186841]
[1747906500000,0.20001856,110570.0,110560.0,4.02995755]
[1747906500200,0.20906227,110570.0,110560.0,4.0209131]
[1747906500397,0.00105083,110570.0,110560.0,4.03900224]
[1747906500609,0.00105083,110570.0,110560.0,5.34080052]
[1747906500822,0.00105083,110570.0,110560.0,5.19275459]
[1747906501041,0.00105083,110570.0,110560.0,5.55453459]
[1747906501241,0.00105083,110570.0,110560.0,5.06576659]
[1747906503456,0.00105083,110570.0,110560.0,5.03097359]
[1747906505759,0.01009422,110570.0,110560.0,4.54334459]
[1747906505964,0.20001857,110570.0,110560.0,4.39173747]
[1747906506322,0.00105083,110570.0,110560.0,4.74982637]
[1747906506524,0.01009422,110570.0,110560.0,5.02090637]
[1747906506967,0.01009422,110570.0,110560.0,5.0528615]
[1747906507712,0.00105083,110570.0,110560.0,5.0528615]
[1747906508310,0.01009422,110570.0,110560.0,5.0528615]
[1747906510028,0.00105083,110570.0,110560.0,5.0528615]
[1747906510642,0.00105083,110570.0,110560.0,6.6015655]
[1747906511084,0.00105083,110570.0,110560.0,6.56961037]
[1747906511286,0.00105083,110570.0,110560.0,6.5949016]
[1747906511496,0.18284817,110590.0,110580.0,0.19895073]
[1747906511700,0.20093224,110590.0,110580.0,0.61935714]
[1747906511838,0.21901631,110590.0,110580.0,0.42944963]
[1747906512036,0.21901631,110590.0,110580.0,0.42954896]
[1747906512274,0.21901631,110590.0,110580.0,0.45666988]
[1747906512480,0.20093257,110590.0,110580.0,0.35808118]
[1747906512681,0.20093257,110590.0,110580.0,0.08696118]
[1747906512857,0.20093257,110590.0,110580.0,0.04529933]
[1747906513436,0.20093257,110590.0,110580.0,0.05984018]
[1747906513642,0.20193257,110590.0,110580.0,0.05984018]
[1747906513885,0.20493257,110590.0,110580.0,0.05984018]
[1747906514529,0.20193257,110590.0,110580.0,0.05984018]
[1747906514734,0.20293257,110590.0,110580.0,0.05984018]
[1747906516616,0.29247813,110590.0,110580.0,0.04529933]
[1747906516834,0.43150556,110590.0,110580.0,9.933e-05]
[1747906518093,0.35933271,110590.0,110580.0,9.933e-05]
[1747906518539,0.43150556,110590.0,110580.0,9.933e-05]
[1747906518969,0.35933271,110590.0,110580.0,9.933e-05]
[1747906520469,0.56394745,110590.0,110580.0,9.933e-05]
[1747906520927,0.56494745,110590.0,110580.0,9.933e-05]
[1747906521124,0.55494745,110590.0,110580.0,9.933e-05]
[1747906521756,0.56360745,110590.0,110580.0,9.933e-05]
[1747906522007,0.56260745,110590.0,110580.0,9.933e-05]
[1747906522220,0.19896839,110570.0,110560.0,3.33660334]
[1747906522445,0.99117868,110570.0,110560.0,3.33660334]
[1747906522656,0.99117868,110570.0,110560.0,3.30464821]
[1747906525304,0.95119395,110570.0,110560.0,3.30464821]
[1747906525507,0.55967395,110570.0,110560.0,3.30464821]
[1747906525892,0.56882337,110570.0,110560.0,3.30464821]
[1747906533125,0.90882337,110570.0,110560.0,3.30464821]
[1747906534952,0.90886337,110570.0,110560.0,3.30464821]
[1747906535297,0.99838488,110570.0,110560.0,3.30464821]
[1747906535472,0.90886337,110570.0,110560.0,3.30464821]
[1747906536217,0.56886337,110570.0,110560.0,3.09069312]
[1747906538388,0.56886337,110570.0,110560.0,3.09175812]
[1747906544199,0.90489414,110570.0,110560.0,3.08623401]
[1747906544390,0.56886337,110570.0,110560.0,3.08623401]
[1747906544620,0.65838488,110570.0,110560.0,3.08623401]
[1747906547203,0.66838488,110570.0,110560.0,3.08623401]
[1747906547370,0.9322428,110570.0,110560.0,3.08623401]
[1747906547586,0.94089249,110570.0,110560.0,3.08623401]
[1747906547789,0.67703457,110570.0,110560.0,3.08623401]
[1747906547974,0.94089249,110570.0,110560.0,3.08623401]
[1747906548150,0.67703457,110570.0,110560.0,3.08623401]
[1747906548351,1.37773457,110570.0,110560.0,3.08623401]
[1747906548842,1.38844431,110570.0,110560.0,3.08623401]
[1747906549401,1.65230223,110570.0,110560.0,3.08623401]
[1747906549599,1.63877234,110570.0,110560.0,1.49564939]
[1747906549811,1.63877234,110570.0,110560.0,1.39687584]
[1747906549989,1.68877234,110570.0,110560.0,1.38680228]
[1747906550190,1.68877234,110570.0,110560.0,1.30234579]
[1747906550400,1.68877234,110570.0,110560.0,1.20251965]
[1747906550599,1.6780626,110570.0,110560.0,1.15730995]
[1747906550806,1.6850626,110570.0,110560.0,1.10980774]
[1747906551348,1.6780626,110570.0,110560.0,0.92961479]
[1747906551636,1.6850626,110570.0,110560.0,0.86693445]
[1747906551850,1.6930626,110570.0,110560.0,0.8177017]
[1747906552085,1.62088975,110570.0,110560.0,0.76523171]
[1747906552285,1.62088975,110570.0,110560.0,0.70785455]
[1747906552475,1.62088975,110570.0,110560.0,0.04895767]
[1747906552476,2.0339026,110570.0,110560.0,0.04895767]
[1747906552694,2.0839026,110570.0,110560.0,0.04172043]
[1747906552894,0.54448279,110560.0,110550.0,0.0001]
[1747906553118,0.18995912,110550.0,110540.0,0.0027041]
[1747906553411,0.9339226,110550.0,110540.0,0.0027041]
[1747906553548,1.2051626,110550.0,110540.0,0.0027041]
[1747906553781,0.94130468,110550.0,110540.0,0.0027041]
[1747906554190,1.2051626,110550.0,110540.0,0.0027041]
[1747906554388,1.21381229,110550.0,110540.0,0.0027041]
[1747906555403,1.21881229,110550.0,110540.0,0.0027041]
[1747906556276,0.95495437,110550.0,110540.0,0.0027041]
[1747906556505,1.21881229,110550.0,110540.0,0.0027041]
[1747906557067,0.95495437,110550.0,110540.0,0.0027041]
[1747906557227,1.22281229,110550.0,110540.0,0.0027041]
[1747906558036,0.95181923,110550.0,110540.0,0.0027041]
[1747906558240,1.61397923,110550.0,110540.0,0.0027041]
[1747906559370,1.61397923,110550.0,110520.0,0.002]
[1747906559371,0.20904039,110530.0,110520.0,0.002]
[1747906559582,0.30858595,110530.0,110520.0,0.002]
[1747906559807,0.97074595,110530.0,110520.0,0.002]
[1747906560250,0.97078595,110530.0,110520.0,0.002]
[1747906560509,1.2435405,110530.0,110520.0,0.002]
[1747906560774,0.97943564,110530.0,110520.0,0.002]
[1747906561017,0.98443564,110530.0,110520.0,0.002]
[1747906561245,0.99824021,110530.0,110520.0,0.002]
[1747906562632,0.31604021,110530.0,110520.0,0.53020972]
[1747906562852,0.97828021,110530.0,110520.0,0.26610486]
[1747906563935,0.31604021,110530.0,110520.0,0.26610486]
[1747906564180,0.96963052,110530.0,110520.0,0.26610486]
[1747906567015,0.96963052,110530.0,110520.0,0.002]
[1747906567351,0.96963052,110530.0,110520.0,0.26610486]
[1747906570222,1.04180337,110530.0,110520.0,0.002]
[1747906570663,0.96963052,110530.0,110520.0,0.002]
[1747906571087,0.96963052,110530.0,110520.0,0.26610486]
[1747906571301,0.30739052,110530.0,110520.0,0.26610486]
[1747906571520,0.30739052,110530.0,110520.0,0.53020972]
[1747906571753,0.30739052,110530.0,110520.0,0.89682021]
[1747906572348,0.20404039,110530.0,110520.0,0.88475057]
[1747906572837,0.19902198,110540.0,110530.0,0.35454085]
[1747906573057,0.18091361,110550.0,110530.0,0.61864571]
[1747906573259,0.18997631,110540.0,110530.0,0.35454085]
[1747906573466,0.18997631,110540.0,110530.0,0.61864571]
[1747906573666,0.18092998,110540.0,110530.0,0.44406236]
[1747906573868,0.18092998,110540.0,110530.0,0.70816722]
[1747906574095,0.18792998,110540.0,110530.0,0.70816722]
[1747906574286,0.18492998,110540.0,110530.0,0.70816722]
[1747906574531,0.27045917,110550.0,110530.0,0.90720794]
[1747906574733,0.20805023,110550.0,110540.0,0.52820972]
[1747906574909,0.19900488,110550.0,110540.0,0.35362637]
[1747906575218,0.19900488,110550.0,110540.0,0.36816722]
[1747906576084,0.19900488,110550.0,110540.0,0.63227208]
[1747906576293,0.1899592,110550.0,110540.0,0.5491972]
[1747906576499,0.1899592,110550.0,110540.0,0.36826722]
[1747906577120,0.1919592,110550.0,110540.0,0.36826722]
[1747906577321,0.1929592,110550.0,110540.0,0.36826722]
[1747906577531,0.1919592,110550.0,110540.0,0.36826722]
[1747906577733,0.1899592,110550.0,110540.0,0.36826722]
[1747906577958,0.1909592,110550.0,110540.0,0.37731371]
[1747906578178,0.1919592,110550.0,110540.0,0.01464085]
[1747906578387,0.1919592,110550.0,110540.0,0.27874571]
[1747906581184,0.1919592,110550.0,110540.0,0.61874571]
[1747906581396,0.1919592,110550.0,110540.0,0.60420486]
[1747906581620,0.1919592,110550.0,110540.0,0.42962151]
[1747906581838,0.1919592,110550.0,110540.0,0.69372637]
[1747906584221,0.28150476,110550.0,110540.0,0.3401]
[1747906584863,0.28150476,110550.0,110540.0,0.60420486]
[1747906585730,0.1919592,110550.0,110540.0,0.60420486]
[1747906585909,0.1919592,110550.0,110540.0,1.04642571]
[1747906586123,0.19195896,110550.0,110540.0,1.08260812]
[1747906586350,0.21909525,110550.0,110540.0,1.16308322]
[1747906586564,0.21005015,110550.0,110540.0,1.16308322]
[1747906587619,0.2010048,110550.0,110540.0,1.16308322]
[1747906588755,0.19195929,110550.0,110540.0,1.16308322]
[1747906588947,0.19195929,110550.0,110540.0,1.13594722]
[1747906590250,0.19195929,110550.0,110540.0,0.85730151]
[1747906590456,0.55274485,110550.0,110540.0,0.3401]
[1747906590670,0.55274485,110550.0,110540.0,0.0001]
[1747906591547,0.6249177,110550.0,110540.0,0.0001]
[1747906592175,0.55274485,110550.0,110540.0,0.0001]
[1747906592591,0.19195929,110550.0,110540.0,0.26420486]
[1747906592795,0.20100472,110550.0,110540.0,0.66914535]
[1747906593759,0.20100422,110550.0,110540.0,0.6836862]
[1747906593961,0.2100499,110550.0,110540.0,0.6836862]
[1747906594299,0.20100472,110550.0,110540.0,0.6836862]
[1747906595549,0.21004973,110550.0,110540.0,0.69273269]
[1747906595756,0.21005014,110550.0,110540.0,0.41958134]
[1747906595968,0.20100471,110550.0,110540.0,0.6836862]
[1747906597617,0.1919592,110550.0,110540.0,0.6836862]
[1747906598035,0.1919592,110550.0,110540.0,0.41958134]
[1747906598247,0.1919592,110550.0,110540.0,0.35464085]
[1747906598914,0.1919592,110550.0,110540.0,0.61874571]
[1747906599265,0.1919592,110550.0,110540.0,0.35464085]
[1747906599470,0.1919592,110550.0,110540.0,0.61874571]
[1747906599676,0.1919592,110550.0,110540.0,0.35464085]
[1747906599857,0.1919592,110550.0,110540.0,0.67592237]
[1747906601107,0.1919592,110550.0,110540.0,0.3401]
[1747906601652,0.1919592,110550.0,110540.0,0.61874571]
[1747906601877,0.1919592,110550.0,110540.0,0.35464085]
[1747906602125,0.002,110550.0,110540.0,0.53557083]
[1747906602348,0.01813952,110560.0,110550.0,0.5625905]
[1747906602524,0.21712624,110560.0,110550.0,0.63867134]
[1747906602725,0.21712624,110560.0,110550.0,0.64771677]
[1747906602873,0.21712624,110560.0,110550.0,0.65676204]
[1747906603097,0.21712624,110560.0,110550.0,0.68389304]
[1747906603755,5.087e-05,110560.0,110550.0,1.0988837]
[1747906604406,0.00105087,110560.0,110550.0,1.0988837]
[1747906604674,0.01209499,110560.0,110550.0,1.0898386]
[1747906604834,0.21912558,110560.0,110550.0,1.0898386]
[1747906605048,0.02918356,110560.0,110550.0,1.0988837]
[1747906605256,0.02918364,110560.0,110550.0,0.82768329]
[1747906605475,0.03822817,110560.0,110550.0,0.82768329]
[1747906605692,0.03822809,110560.0,110550.0,0.82768329]
[1747906605916,0.0452727,110560.0,110550.0,0.82768329]
[1747906606146,0.20808195,110560.0,110550.0,0.97315675]
[1747906606355,0.20808195,110560.0,110550.0,0.98220218]
[1747906606566,0.21712681,110560.0,110550.0,0.72004745]
[1747906606788,0.21712681,110560.0,110550.0,1.46240745]
[1747906607213,0.20808195,110560.0,110550.0,1.44431675]
[1747906607461,0.20808195,110560.0,110550.0,1.4533621]
[1747906608032,0.21712673,110560.0,110550.0,1.47145255]
[1747906608447,0.21712673,110560.0,110550.0,1.4533621]
[1747906608658,0.22617159,110560.0,110550.0,1.46240737]
[1747906609780,0.22617159,110560.0,110550.0,1.45336202]
[1747906609988,0.21712673,110560.0,110550.0,1.1821621]
[1747906610205,0.19903759,110560.0,110550.0,0.89803185]
[1747906610366,0.19903759,110560.0,110550.0,0.87090085]
[1747906610583,0.19903759,110560.0,110550.0,0.85636]
[1747906611170,0.19903759,110560.0,110550.0,1.03727361]
[1747906611377,0.19903759,110560.0,110550.0,0.94588151]
[1747906611765,0.1899929,110560.0,110550.0,0.94588151]
[1747906613565,0.1899929,110560.0,110550.0,1.16847243]
[1747906613764,0.19903743,110560.0,110550.0,1.16847243]
[1747906613961,0.19903693,110560.0,110550.0,1.16847243]
[1747906614193,0.01813968,110560.0,110550.0,1.17751753]
[1747906614395,0.02718437,110560.0,110550.0,1.17751753]
[1747906614609,5.087e-05,110560.0,110550.0,1.17751753]
[1747906614817,0.002,110570.0,110560.0,0.22257169]
[1747906615066,0.0110433,110570.0,110560.0,0.5832532]
[1747906615501,0.02008669,110570.0,110560.0,0.5832532]
[1747906615930,0.02913024,110570.0,110560.0,0.5832532]
[1747906616147,0.03817395,110570.0,110560.0,0.5832532]
[1747906616363,0.03013024,110570.0,110560.0,0.5832532]
[1747906616565,0.04017395,110570.0,110560.0,0.5832532]
[1747906617381,0.23009879,110570.0,110560.0,0.58325329]
[1747906617570,0.22105483,110570.0,110560.0,0.58325329]
[1747906617742,0.23009871,110570.0,110560.0,0.59229757]
[1747906617950,0.23009937,110570.0,110560.0,0.58325329]
[1747906619170,0.22105541,110570.0,110560.0,0.59229757]
[1747906619377,0.03113065,110570.0,110560.0,0.59229757]
[1747906619577,0.02208694,110570.0,110560.0,0.59229757]
[1747906620049,0.03113065,110570.0,110560.0,0.59229757]
[1747906620471,0.04017453,110570.0,110560.0,0.59229757]
[1747906620677,0.03113065,110570.0,110560.0,0.93229757]
[1747906621526,0.22105549,110570.0,110560.0,0.93229757]
[1747906621734,0.22105541,110570.0,110560.0,0.93229757]
[1747906622162,0.22105541,110570.0,110560.0,0.95942557]
[1747906622369,0.22105541,110570.0,110560.0,0.68826557]
[1747906622539,0.04017453,110570.0,110560.0,0.95942557]
[1747906623410,0.01304339,110570.0,110560.0,0.95942557]
[1747906623622,0.004,110570.0,110560.0,1.04897113]
[1747906624257,0.02008358,110590.0,110580.0,0.21349125]
[1747906624462,0.02008358,110590.0,110580.0,0.29868273]
[1747906624463,0.0200835,110590.0,110580.0,0.29868273]
[1747906624671,0.0291255,110590.0,110580.0,0.29868273]
[1747906624876,0.002,110590.0,110580.0,1.04458829]
[1747906625077,0.01104167,110590.0,110580.0,1.04458829]
[1747906625485,0.0200835,110590.0,110580.0,1.04458829]
[1747906625687,0.18292519,110610.0,110600.0,0.34]
[1747906625890,0.20114446,110610.0,110600.0,0.58376658]
[1747906626217,0.20114446,110610.0,110600.0,0.59280784]
[1747906626428,0.20114446,110610.0,110600.0,0.42101526]
[1747906626623,0.20114446,110610.0,110600.0,0.43019231]
[1747906626830,0.20214446,110610.0,110600.0,0.43019231]
[1747906627029,0.19310402,110610.0,110600.0,0.43019231]
[1747906627465,0.19410402,110610.0,110600.0,0.43019231]
[1747906628212,0.19410402,110610.0,110600.0,0.42969231]
[1747906628425,0.18334508,110630.0,110600.0,1.18565054]
[1747906628640,0.21695771,110620.0,110610.0,0.02358162]
[1747906628819,0.19887871,110620.0,110610.0,0.10406236]
[1747906629897,0.18334508,110630.0,110620.0,0.18079913]
[1747906630086,0.18334508,110630.0,110610.0,0.31199892]
[1747906630356,0.18334508,110630.0,110620.0,0.52079913]
[1747906630547,0.20142318,110630.0,110620.0,0.53887879]
[1747906630728,0.21046191,110630.0,110620.0,0.63310621]
[1747906630948,0.20142318,110630.0,110620.0,0.63310621]
[1747906631368,0.00245705,110630.0,110620.0,0.64764706]
[1747906631585,0.04297264,110650.0,110640.0,0.22242127]
[1747906631794,0.05216232,110650.0,110640.0,0.26454795]
[1747906632245,0.06119949,110650.0,110640.0,0.26454795]
[1747906632676,0.07023683,110650.0,110640.0,0.29165795]
[1747906633090,0.0292637,110650.0,110640.0,0.29165795]
[1747906633293,0.02022653,110650.0,110640.0,0.29165795]
[1747906633501,0.03830104,110650.0,110640.0,0.29165795]
[1747906633711,0.04733846,110650.0,110640.0,0.29165795]
[1747906633921,0.04733911,110650.0,110640.0,0.29165811]
[1747906634131,0.04733911,110650.0,110640.0,0.30069594]
[1747906634346,0.03830161,110650.0,110640.0,0.30069594]
[1747906634563,0.04733911,110650.0,110640.0,0.30269594]
[1747906634769,0.21905221,110650.0,110640.0,0.30569594]
[1747906635987,0.21905221,110650.0,110640.0,0.31473369]
[1747906636470,0.00215267,110650.0,110640.0,1.00628142]
[1747906636665,0.02022661,110650.0,110640.0,1.00628142]
[1747906636871,0.21001406,110650.0,110640.0,0.89445753]
[1747906637079,0.20097721,110650.0,110640.0,0.89445753]
[1747906637304,0.20097721,110650.0,110640.0,0.37211]
[1747906637562,0.20097721,110650.0,110640.0,0.005]
[1747906637563,0.29052277,110650.0,110640.0,0.005]
[1747906637799,0.20097721,110650.0,110640.0,0.005]
[1747906638257,0.20097721,110650.0,110640.0,0.345]
[1747906638698,0.20097721,110650.0,110640.0,0.342]
[1747906638945,0.20097721,110650.0,110640.0,0.39518196]
[1747906639450,0.20097721,110650.0,110640.0,0.39318196]
[1747906639688,0.20097721,110650.0,110640.0,0.39418196]
[1747906640172,0.20097721,110650.0,110640.0,0.39518196]
[1747906641381,0.19194012,110650.0,110640.0,0.40972281]
[1747906642057,0.19194012,110650.0,110640.0,0.25768554]
[1747906642491,0.19194012,110650.0,110640.0,0.06972281]
[1747906642738,0.19194012,110650.0,110640.0,0.01654085]
[1747906643582,0.19194012,110650.0,110640.0,0.21538351]
[1747906644270,0.19194012,110650.0,110640.0,0.2244215]
[1747906644476,0.19194012,110650.0,110640.0,0.23345941]
[1747906644699,0.19194012,110650.0,110640.0,0.21538351]
[1747906644908,0.0202271,110650.0,110640.0,0.30107894]
[1747906645362,0.02022645,110650.0,110640.0,0.64107894]
[1747906645588,0.03830088,110650.0,110640.0,0.64107894]
[1747906645800,0.0473383,110650.0,110640.0,0.64107894]
[1747906646010,0.03830071,110650.0,110640.0,0.64107894]
[1747906646216,0.04733805,110650.0,110640.0,0.64107894]
[1747906647064,0.04733797,110650.0,110640.0,0.64107894]
[1747906647269,0.04733846,110650.0,110640.0,0.64107894]
[1747906647494,0.04733895,110650.0,110640.0,0.64107894]
[1747906647708,0.22808947,110650.0,110640.0,0.66818894]
[1747906648142,0.22808947,110650.0,110640.0,0.65915119]
[1747906648348,0.2190523,110650.0,110640.0,0.65915119]
[1747906648554,0.2190523,110650.0,110640.0,0.40245383]
[1747906648756,0.2190523,110650.0,110640.0,0.58322027]
[1747906649168,0.21001504,110650.0,110640.0,0.60129649]
[1747906650274,0.19194028,110650.0,110640.0,0.39341584]
[1747906650551,0.19194028,110650.0,110640.0,0.36711]
[1747906653871,0.19194028,110650.0,110640.0,0.02711]
[1747906656641,0.1988608,110630.0,110620.0,0.0451]
[1747906656885,0.1988608,110630.0,110620.0,0.072214]
[1747906657095,0.1988608,110630.0,110620.0,0.16173551]
[1747906657491,0.1988608,110630.0,110620.0,0.13462151]
[1747906658297,0.1988608,110630.0,110620.0,0.13762151]
[1747906659412,0.18982191,110630.0,110620.0,0.14062151]
[1747906660791,0.20330172,110630.0,110620.0,0.14062151]
[1747906661480,0.20330172,110630.0,110620.0,0.0511]
[1747906662579,0.20330172,110630.0,110620.0,0.3911]
[1747906665940,0.19426259,110630.0,110620.0,0.006]
[1747906666390,0.19426259,110630.0,110620.0,0.346]
[1747906668569,0.19426259,110630.0,110620.0,0.343]
[1747906669448,0.19426259,110630.0,110620.0,0.34]
[1747906671019,0.19426259,110630.0,110620.0,0.374]
[1747906671219,0.19426259,110630.0,110620.0,0.34]
[1747906672029,0.19426259,110630.0,110620.0,0.52079913]
[1747906672255,0.21234029,110630.0,110620.0,0.52983908]
[1747906672465,0.22137877,110630.0,110620.0,0.53887895]
[1747906672667,0.2304179,110630.0,110620.0,0.6135602]
[1747906673052,0.2304179,110630.0,110620.0,0.62259999]
[1747906673255,0.22137934,110630.0,110620.0,0.34]
[1747906673684,0.22137934,110630.0,110620.0,0.34903995]
[1747906674386,0.22137934,110630.0,110610.0,0.22601396]
[1747906674590,0.0090393,110620.0,110610.0,0.66105976]
[1747906674803,0.0090393,110620.0,110610.0,1.47366127]
[1747906675758,0.01807868,110620.0,110610.0,1.47366127]
[1747906675962,0.01807868,110620.0,110610.0,1.47566127]
[1747906676658,0.01807868,110620.0,110610.0,1.47766127]
[1747906677148,0.02711814,110620.0,110610.0,1.46662124]
[1747906677358,0.1988608,110630.0,110620.0,0.529839]
[1747906677589,0.1988608,110630.0,110620.0,0.61936051]
[1747906677793,0.1988608,110630.0,110620.0,0.63743984]
[1747906677794,0.19886031,110630.0,110620.0,0.63743984]
[1747906678007,0.20789879,110630.0,110620.0,0.6284003]
[1747906678241,0.18981905,110640.0,110630.0,0.5388608]
[1747906678469,0.00903758,110640.0,110630.0,0.65198602]
[1747906678707,0.01807524,110640.0,110630.0,1.02154609]
[1747906678920,0.01807533,110640.0,110630.0,1.04865609]
[1747906679122,0.00903758,110640.0,110630.0,1.04865609]
[1747906679271,0.01807533,110640.0,110630.0,1.04865609]
[1747906679471,0.20787968,110640.0,110630.0,1.04865609]
[1747906679678,0.20887968,110640.0,110630.0,1.04865609]
[1747906680161,0.20987968,110640.0,110630.0,1.04865609]
[1747906680584,0.02911324,110640.0,110630.0,1.04865609]
[1747906680793,0.01003758,110640.0,110630.0,1.04865609]
[1747906680996,0.01907533,110640.0,110630.0,1.04865609]
[1747906681427,0.00903758,110640.0,110630.0,1.04865609]
[1747906681629,0.02711299,110640.0,110630.0,1.09385609]
[1747906683441,0.22595533,110640.0,110630.0,1.09385617]
[1747906683643,0.21691759,110640.0,110630.0,1.09385626]
[1747906683814,0.22595566,110640.0,110630.0,1.1028949]
[1747906684031,0.19884266,110640.0,110630.0,0.41231]
[1747906684440,0.18980459,110640.0,110630.0,0.41231]
[1747906684763,0.18980459,110640.0,110630.0,0.3852]
[1747906684932,0.18290278,110650.0,110630.0,0.59309944]
[1747906685139,0.20788025,110640.0,110630.0,0.77819106]
[1747906685346,0.21691791,110640.0,110630.0,0.79626826]
[1747906685547,0.21691799,110640.0,110630.0,0.7872297]
[1747906685743,0.21691799,110640.0,110630.0,0.77819106]
[1747906685950,0.21691799,110640.0,110630.0,0.78722979]
[1747906686145,0.22595614,110640.0,110630.0,0.78722979]
[1747906686469,0.22595614,110640.0,110630.0,0.79626843]
[1747906686687,0.00903766,110640.0,110630.0,0.79626835]
[1747906686894,0.20097737,110650.0,110640.0,0.18980468]
[1747906687110,0.20097688,110650.0,110640.0,0.74040426]
[1747906687355,0.00215267,110650.0,110640.0,1.20256633]
[1747906687533,0.01118944,110650.0,110640.0,1.20256633]
[1747906687942,0.02022629,110650.0,110640.0,1.20256633]
[1747906688155,0.01118944,110650.0,110640.0,1.20256633]
[1747906688515,0.01218944,110650.0,110640.0,1.20256633]
[1747906688918,0.00315267,110650.0,110640.0,1.20256633]
[1747906689342,0.00415267,110650.0,110640.0,1.20256633]
[1747906689758,0.00415267,110650.0,110640.0,1.22967233]
[1747906689965,0.00315267,110650.0,110640.0,1.50063233]
[1747906690393,0.00215267,110650.0,110640.0,1.50263233]
[1747906690620,0.01118944,110650.0,110640.0,1.50263233]
[1747906690865,0.00215267,110650.0,110640.0,1.50263233]
[1747906691868,0.00215267,110650.0,110640.0,1.50463233]
[1747906692260,0.00215267,110650.0,110640.0,1.86615233]
[1747906694737,0.00215267,110650.0,110640.0,2.30050189]
[1747906695771,0.00215267,110650.0,110640.0,1.86320589]
[1747906697439,0.01,110680.0,110660.0,0.01454085]
[1747906697608,0.20978818,110690.0,110680.0,0.52070112]
[1747906697834,0.20978818,110690.0,110680.0,1.06616]
[1747906697835,0.20829762,110690.0,110680.0,1.06616]
[1747906698036,0.19926387,110690.0,110680.0,0.34]
[1747906698190,0.19926387,110690.0,110680.0,0.45662151]
[1747906698391,0.19926387,110690.0,110680.0,0.42952151]
[1747906698609,0.19926387,110690.0,110680.0,0.34]
[1747906699032,0.19926387,110690.0,110680.0,0.342]
[1747906700078,0.19926387,110690.0,110680.0,0.343]
[1747906702228,0.19926387,110690.0,110680.0,0.003]
[1747906717014,0.19926387,110690.0,110680.0,0.003]
[1747906718483,0.19926347,110690.0,110680.0,0.54402951]
[1747906718630,0.19926387,110690.0,110680.0,0.343]
[1747906722632,0.19022988,110690.0,110680.0,0.343]
[1747906725721,0.19022988,110690.0,110680.0,0.52370112]
[1747906725954,0.19022988,110690.0,110680.0,0.5417709]
[1747906726196,0.19022988,110690.0,110680.0,0.53273609]
[1747906726432,0.19022988,110690.0,110680.0,0.54177098]
[1747906726957,0.19022988,110690.0,110680.0,0.63129249]
[1747906728070,0.19022988,110690.0,110680.0,0.6222576]
[1747906728353,0.19022988,110690.0,110680.0,0.63129249]
[1747906728570,0.00954245,110690.0,110680.0,0.7534481]
[1747906728955,0.0185762,110690.0,110680.0,0.7534481]
[1747906729267,0.00954237,110690.0,110680.0,0.7534481]
[1747906729474,0.00050879,110690.0,110680.0,0.7534481]
[1747906729890,0.00050879,110690.0,110680.0,1.1148481]
[1747906730104,0.00954229,110690.0,110680.0,1.1148481]
[1747906730743,0.00050879,110690.0,110680.0,1.1148481]
[1747906730961,0.00050879,110690.0,110680.0,1.8369281]
[1747906731179,0.01103187,110710.0,110700.0,0.2223086]
[1747906731397,0.0021526,110710.0,110700.0,1.36013878]
[1747906732714,0.0021526,110710.0,110700.0,1.40533878]
[1747906733406,0.0041526,110710.0,110700.0,1.40533878]
[1747906733824,0.0021526,110710.0,110700.0,1.40533878]
[1747906734029,0.0041526,110710.0,110700.0,1.40533878]
[1747906734280,0.0041526,110710.0,110700.0,1.04132822]
[1747906734491,0.0021526,110710.0,110700.0,1.05939416]
[1747906734698,0.0021526,110710.0,110700.0,0.80326192]
[1747906734906,0.0021526,110710.0,110700.0,0.99296373]
[1747906735118,0.0021526,110710.0,110700.0,1.08248524]
[1747906735969,0.002,110730.0,110720.0,0.20773022]
[1747906736187,0.002,110730.0,110720.0,1.01931578]
[1747906736404,0.01103024,110730.0,110720.0,1.01931578]
[1747906736615,0.01103024,110730.0,110720.0,1.37385663]
[1747906736860,0.198664,110740.0,110730.0,0.19868122]
[1747906737084,0.20769399,110740.0,110730.0,0.28822678]
[1747906737295,0.20769399,110740.0,110730.0,0.29725743]
[1747906737504,0.01805925,110740.0,110730.0,0.30628783]
[1747906737717,0.02708891,110740.0,110730.0,0.30628783]
[1747906737923,0.21672211,110740.0,110730.0,0.39580942]
[1747906738257,0.22172219,110740.0,110730.0,0.37774829]
[1747906738675,0.21069269,110740.0,110730.0,0.3867791]
[1747906738882,0.21269269,110740.0,110730.0,0.36871756]
[1747906739317,0.20366262,110740.0,110730.0,0.3867791]
[1747906739531,0.21269261,110740.0,110730.0,0.39586521]
[1747906739736,0.20366262,110740.0,110730.0,0.39586521]
[1747906739940,0.20066262,110740.0,110730.0,0.39580958]
[1747906740148,0.20969253,110740.0,110730.0,0.39580958]
[1747906740357,0.18460321,110740.0,110730.0,0.79003998]
[1747906740558,0.20266262,110740.0,110730.0,0.79003998]
[1747906741190,0.02205941,110740.0,110730.0,0.79003998]
[1747906741607,0.20266254,110740.0,110730.0,0.79003998]